bitfinex-derivatives/quotes_BTCF0:USTF0_20251219
["timestamp","ask_amount","ask_price","bid_price","bid_amount"]
[1766133398970,0.00364,88233.0,88208.0,0.00152]
[1766133398971,0.0113421,88225.0,88208.0,0.00152]
[1766133399172,0.0113421,88225.0,88209.0,0.00017009]
[1766133399370,0.0113424,88222.0,88209.0,0.00017009]
[1766133399577,0.00017009,88227.0,88209.0,0.00017009]
[1766133399874,0.0113438,88211.0,88192.0,2.3832]
[1766133400075,0.28979993,88210.0,88193.0,0.00572]
[1766133400277,0.0113453,88200.0,88176.0,0.0113482]
[1766133400472,0.28979993,88210.0,88177.0,2.3868]
[1766133400676,0.0113443,88207.0,88185.0,0.0113471]
[1766133400876,0.00572,88209.0,88186.0,0.00572]
[1766133401076,0.00017009,88201.0,88187.0,0.00572]
[1766133402077,0.0113452,88200.0,88184.0,0.00017009]
[1766133402468,0.0113459,88195.0,88184.0,9e-08]
[1766133402668,0.0113453,88200.0,88184.0,9e-08]
[1766133403069,0.00017009,88201.0,88184.0,9e-08]
[1766133403275,0.0113465,88191.0,88184.0,9e-08]
[1766133403474,0.00017009,88201.0,88184.0,9e-08]
[1766133403475,0.0113458,88195.0,88184.0,9e-08]
[1766133404082,0.00572,88196.0,88184.0,9e-08]
[1766133404281,0.011347,88186.0,88184.0,9e-08]
[1766133404584,0.0113465,88190.0,88184.0,9e-08]
[1766133404881,0.011346,88194.0,88184.0,9e-08]
[1766133405276,0.00572,88196.0,88184.0,9e-08]
[1766133405484,0.0113465,88190.0,88184.0,9e-08]
[1766133406784,0.0113471,88185.0,88184.0,9e-08]
[1766133406977,0.0113478,88180.0,88157.0,0.0113506]
[1766133407173,0.0113478,88180.0,88158.0,0.00572]
[1766133407377,0.0113482,88177.0,88158.0,0.00572]
[1766133407872,0.00017009,88176.0,88159.0,0.00017009]
[1766133408282,0.0113485,88175.0,88159.0,0.00017009]
[1766133408587,0.00017009,88176.0,88153.0,0.00572]
[1766133408588,0.011349,88170.0,88153.0,0.00572]
[1766133408779,0.00572,88169.0,88134.0,0.0302698]
[1766133408980,0.00572,88169.0,88127.0,0.0302698]
[1766133408981,0.0113526,88143.0,88127.0,0.0302698]
[1766133409177,0.0113502,88162.0,88121.0,0.0302698]
[1766133409178,0.0113525,88144.0,88121.0,0.0302698]
[1766133409381,0.0056,88146.0,88122.0,0.00572]
[1766133409581,0.00017019,88143.0,88125.0,0.00017019]
[1766133410681,0.00017019,88143.0,88125.0,0.01152489]
[1766133410885,0.00017019,88143.0,88125.0,0.00017019]
[1766133412087,0.01152279,88143.0,88125.0,0.00017019]
[1766133412877,0.00017019,88143.0,88125.0,0.00017019]
[1766133414382,0.0113532,88138.0,88125.0,0.00017019]
[1766133415084,0.00017019,88143.0,88125.0,0.00017019]
[1766133415487,0.00017019,88143.0,88126.0,0.0113547]
[1766133415679,0.00017019,88143.0,88125.0,0.00017019]
[1766133415680,0.01152269,88143.0,88125.0,0.00017019]
[1766133416486,0.0113531,88139.0,88125.0,0.00017019]
[1766133418088,0.0113535,88136.0,88118.0,0.00011156]
[1766133418281,0.0170735,88136.0,88118.0,0.00011156]
[1766133418483,0.0113543,88130.0,88111.0,0.00152]
[1766133418688,0.00572,88136.0,88111.0,0.00152]
[1766133419081,0.0113549,88125.0,88115.0,0.00017019]
[1766133419288,0.00572,88125.0,88097.0,0.0113584]
[1766133419488,0.0113556,88120.0,88098.0,0.00572]
[1766133419693,0.30115553,88120.0,88098.0,0.00572]
[1766133419888,0.0113561,88116.0,88098.0,0.00572]
[1766133420294,0.00017019,88116.0,88098.0,0.00572]
[1766133420790,0.0006,88115.0,88094.0,0.0113588]
[1766133421088,0.0006,88115.0,88093.0,0.00572]
[1766133421685,0.00388,88114.0,88094.0,0.0113588]
[1766133421995,0.00492,88114.0,88094.0,0.0113588]
[1766133422584,0.00492,88114.0,88099.0,0.0113581]
[1766133422780,0.00017019,88116.0,88093.0,0.00572]
[1766133422987,1.9e-07,88117.0,88100.0,0.28979993]
[1766133423279,0.0002,88123.0,88101.0,0.00572]
[1766133423690,0.0002,88123.0,88101.0,0.0170778]
[1766133423894,0.0002,88123.0,88103.0,0.00017019]
[1766133423895,0.00017019,88121.0,88103.0,0.00017019]
[1766133424095,0.0113555,88120.0,88103.0,0.00017019]
[1766133424392,0.00017019,88121.0,88103.0,0.00017019]
[1766133427893,0.00017019,88121.0,88104.0,0.0113575]
[1766133429289,0.00017019,88121.0,88103.0,9e-08]
[1766133429483,0.28979993,88120.0,88103.0,9e-08]
[1766133429791,0.0113574,88105.0,88103.0,9e-08]
[1766133429990,0.00011156,88104.0,88103.0,9e-08]
[1766133431394,0.0113557,88119.0,88103.0,9e-08]
[1766133431586,0.00564,88118.0,88103.0,9e-08]
[1766133431781,0.00017019,88121.0,88104.0,0.0113575]
[1766133432889,0.00017019,88121.0,88107.0,0.0113571]
[1766133433085,0.00292,88126.0,88113.0,0.0113563]
[1766133433289,0.00292,88126.0,88112.0,0.0113564]
[1766133433902,0.00292,88126.0,88104.0,0.0113575]
[1766133433903,0.0142747,88126.0,88104.0,0.0113575]
[1766133434086,0.0142747,88126.0,88106.0,0.00017019]
[1766133434087,0.00017019,88124.0,88106.0,0.00017019]
[1766133434292,0.0113558,88118.0,88106.0,0.00017019]
[1766133434602,0.0113552,88123.0,88106.0,0.00017019]
[1766133434898,0.00017019,88124.0,88106.0,0.00017019]
[1766133435099,0.00017019,88124.0,88107.0,0.0113571]
[1766133435302,0.00017019,88124.0,88106.0,0.00017019]
[1766133435490,1.9e-07,88124.0,88106.0,0.00017019]
[1766133435690,1.9e-07,88124.0,88107.0,0.0113571]
[1766133436192,1.9e-07,88124.0,88108.0,0.00572]
[1766133437200,0.0113526,88143.0,88122.0,0.0113552]
[1766133437399,0.0113529,88141.0,88119.0,0.00572]
[1766133437587,0.0113538,88134.0,88119.0,0.00572]
[1766133437793,0.0113542,88130.0,88107.0,0.0113571]
[1766133437993,0.0113542,88130.0,88109.0,0.0113569]
[1766133438293,0.0113514,88152.0,88094.0,0.0405001]
[1766133438294,0.28979993,88120.0,88097.0,0.03596345]
[1766133438496,0.0113559,88117.0,88097.0,0.00572]
[1766133438804,0.0113567,88111.0,88094.0,0.03024345]
[1766133438992,0.0113562,88115.0,88093.0,0.03024345]
[1766133439394,0.00017019,88113.0,88094.0,0.03024345]
[1766133439593,0.00017019,88113.0,88092.0,0.03596345]
[1766133440089,0.00017019,88113.0,88092.0,0.00572]
[1766133440292,0.011357,88109.0,88093.0,0.03024345]
[1766133440494,0.00572,88108.0,88093.0,0.03024345]
[1766133440689,0.0170771,88108.0,88093.0,0.03024345]
[1766133440902,0.00572,88108.0,88092.0,0.03596345]
[1766133441097,0.00572,88108.0,88091.0,0.03024345]
[1766133441296,0.00572,88108.0,88092.0,0.03024345]
[1766133441498,0.0113576,88104.0,88086.0,0.0405001]
[1766133441694,0.00572,88108.0,88086.0,0.0405001]
[1766133441695,0.0113573,88107.0,88086.0,0.0518599]
[1766133441895,0.00572,88108.0,88093.0,0.0113589]
[1766133442095,0.00572,88108.0,88080.0,0.00572]
[1766133442303,0.00572,88108.0,88089.0,0.0113594]
[1766133442805,0.00572,88108.0,88084.0,0.01136]
[1766133443390,0.0113572,88107.0,88080.0,0.00572]
[1766133443595,0.0113572,88107.0,88081.0,0.0113605]
[1766133444308,0.0113572,88107.0,88080.0,0.00572]
[1766133444309,0.0113577,88104.0,88080.0,0.0170805]
[1766133444500,0.0170771,88108.0,88083.0,0.0113601]
[1766133444806,0.00017019,88113.0,88083.0,0.0113601]
[1766133444807,0.00552,88107.0,88083.0,0.0113602]
[1766133445303,0.00552,88107.0,88086.0,0.0113597]
[1766133445903,0.00552,88107.0,88085.0,0.0113599]
[1766133448502,0.00552,88107.0,88088.0,0.0113595]
[1766133448898,0.00552,88107.0,88084.0,0.0113601]
[1766133449100,0.0113573,88106.0,88084.0,0.0113601]
[1766133449408,0.0113584,88098.0,88076.0,0.0405001]
[1766133449609,0.0113581,88100.0,88081.0,0.00572]
[1766133451106,0.00552,88107.0,88081.0,0.00572]
[1766133451417,0.0113582,88100.0,88081.0,0.00572]
[1766133451908,0.0113582,88100.0,88077.0,0.0113609]
[1766133452503,0.00552,88107.0,88074.0,2.3912]
[1766133452713,0.0113571,88108.0,88074.0,2.3912]
[1766133452915,0.0113574,88105.0,88083.0,0.0113601]
[1766133453109,0.00364,88104.0,88083.0,0.0113601]
[1766133453712,0.00364,88104.0,88074.0,2.3912]
[1766133453713,0.0113581,88100.0,88079.0,0.0113607]
[1766133454700,0.0113587,88095.0,88074.0,0.00572]
[1766133454904,0.00017029,88093.0,88074.0,0.00572]
[1766133455108,0.00017029,88093.0,88075.0,0.0113612]
[1766133456006,0.00017029,88093.0,88078.0,0.0113609]
[1766133456211,0.00017029,88093.0,88081.0,0.0113604]
[1766133457609,0.00017029,88093.0,88084.0,0.01136]
[1766133457808,0.00452,88103.0,88085.0,0.0113599]
[1766133458114,0.0113572,88107.0,88088.0,0.0113596]
[1766133458309,0.00356,88106.0,88088.0,0.0113596]
[1766133458719,0.00373029,88106.0,88088.0,0.01152989]
[1766133460412,0.00373029,88106.0,88091.0,0.0113592]
[1766133461012,0.00373029,88106.0,88088.0,0.00017029]
[1766133461723,0.0113575,88105.0,88088.0,0.00017029]
[1766133461918,0.00373029,88106.0,88088.0,0.00017029]
[1766133462123,0.0113585,88097.0,88076.0,0.00108]
[1766133462314,0.0113587,88095.0,88076.0,0.00108]
[1766133462826,0.0113588,88095.0,88059.0,0.0113633]
[1766133463014,0.00364,88096.0,88071.0,0.0113617]
[1766133463015,0.00017029,88088.0,88071.0,0.0113617]
[1766133463217,0.00017029,88088.0,88072.0,0.00572]
[1766133463816,0.00017029,88088.0,88073.0,0.0113615]
[1766133467025,0.00017029,88088.0,88072.0,0.00572]
[1766133468324,2.9e-07,88088.0,88072.0,0.00572]
[1766133468515,0.00052,88100.0,88072.0,0.00572]
[1766133468719,2.38588,88116.0,88072.0,0.00572]
[1766133468720,0.00052,88101.0,88072.0,0.00572]
[1766133468918,0.00052,88101.0,88084.0,0.01136]
[1766133469114,0.00052,88101.0,88075.0,0.0113612]
[1766133469332,0.00052,88101.0,88076.0,0.00364]
[1766133469529,0.00017029,88097.0,88079.0,0.00017029]
[1766133469827,0.011359,88093.0,88079.0,0.00017029]
[1766133470923,0.0113586,88096.0,88079.0,0.00017029]
[1766133471928,0.00017029,88097.0,88080.0,0.0113605]
[1766133472322,0.00017029,88097.0,88079.0,0.00017029]
[1766133473922,0.0113594,88090.0,88079.0,0.00017029]
[1766133474126,0.00017029,88097.0,88079.0,0.00017029]
[1766133474325,0.0113594,88090.0,88079.0,0.00017029]
[1766133474832,0.0113597,88087.0,88079.0,9e-08]
[1766133475829,0.0113601,88084.0,88079.0,9e-08]
[1766133476530,0.0113591,88092.0,88079.0,9e-08]
[1766133476835,0.01136,88086.0,88079.0,9e-08]
[1766133478927,0.0113595,88090.0,88079.0,9e-08]
[1766133479525,0.0113602,88084.0,88079.0,9e-08]
[1766133479725,0.0113597,88088.0,88079.0,9e-08]
[1766133479925,0.0170797,88088.0,88079.0,9e-08]
[1766133480332,0.00572,88088.0,88079.0,9e-08]
[1766133481231,0.00017029,88097.0,88080.0,0.0113606]
[1766133481635,0.00017029,88097.0,88079.0,9e-08]
[1766133482035,0.0113586,88096.0,88079.0,9e-08]
[1766133483631,0.00017029,88097.0,88079.0,9e-08]
[1766133483832,0.00017029,88097.0,88080.0,0.0113606]
[1766133485537,0.00017029,88097.0,88079.0,0.01136079]
[1766133486232,0.011359,88093.0,88079.0,9e-08]
[1766133486437,0.00017029,88097.0,88079.0,9e-08]
[1766133486631,0.0113599,88086.0,88079.0,9e-08]
[1766133487424,0.0170792,88091.0,88079.0,9e-08]
[1766133487937,0.0113596,88088.0,88079.0,9e-08]
[1766133488236,0.00572,88091.0,88079.0,9e-08]
[1766133488437,0.0113594,88090.0,88079.0,9e-08]
[1766133488644,0.0113589,88094.0,88079.0,9e-08]
[1766133488839,0.00572,88093.0,88079.0,9e-08]
[1766133490139,0.00017029,88097.0,88079.0,9e-08]
[1766133490341,0.00284,88096.0,88079.0,9e-08]
[1766133493146,0.0113597,88088.0,88079.0,9e-08]
[1766133494336,0.0113591,88092.0,88079.0,9e-08]
[1766133495539,0.00017029,88097.0,88079.0,9e-08]
[1766133495743,0.00017029,88097.0,88079.0,0.01136079]
[1766133496137,0.00168,88096.0,88079.0,0.01136079]
[1766133497548,0.0130387,88096.0,88079.0,9e-08]
[1766133497738,0.00017029,88097.0,88080.0,0.0113605]
[1766133497937,0.00172,88102.0,88083.0,0.0113602]
[1766133498140,0.0130778,88102.0,88079.0,0.01136079]
[1766133498642,0.0113579,88101.0,88080.0,0.0150005]
[1766133499046,0.00017029,88099.0,88080.0,0.0150005]
[1766133499248,0.00017029,88099.0,88080.0,0.00364]
[1766133499643,0.0113592,88092.0,88079.0,9e-08]
[1766133499851,0.00017029,88099.0,88079.0,9e-08]
[1766133500542,0.0113598,88087.0,88079.0,9e-08]
[1766133500945,0.00017029,88099.0,88079.0,9e-08]
[1766133500946,0.011359,88094.0,88079.0,9e-08]
[1766133501152,0.0113592,88092.0,88079.0,9e-08]
[1766133501448,0.00572,88091.0,88079.0,9e-08]
[1766133502153,0.00017029,88099.0,88079.0,0.01136089]
[1766133502344,0.00572,88098.0,88079.0,0.01136089]
[1766133502647,0.00572,88098.0,88079.0,9e-08]
[1766133502853,0.0113597,88088.0,88079.0,9e-08]
[1766133503250,0.01136,88085.0,88079.0,9e-08]
[1766133503445,0.00572,88089.0,88079.0,9e-08]
[1766133503949,0.0113604,88082.0,88079.0,9e-08]
[1766133504148,0.0113604,88082.0,88058.0,0.01363474]
[1766133504149,0.00572,88081.0,88059.0,2e-08]
[1766133504353,0.0113628,88064.0,88058.0,4e-08]
[1766133504652,0.0154026,88065.0,88058.0,4e-08]
[1766133505253,0.00010444,88064.0,88058.0,4e-08]
[1766133507060,0.00010444,88064.0,88030.0,0.3516253]
[1766133507061,0.00010444,88064.0,88022.0,1e-08]
[1766133507356,0.29033399,88032.0,88017.0,7e-08]
[1766133507556,0.00572,88031.0,87988.0,2.38656]
[1766133507752,0.0113671,88030.0,88001.0,0.0113707]
[1766133507956,0.00017041,88024.0,88001.0,0.0113707]
[1766133508160,0.00548,88023.0,88001.0,0.0113707]
[1766133508452,0.00012424,88022.0,88001.0,0.0113707]
[1766133511056,0.00012424,88022.0,88005.0,0.0113702]
[1766133511254,0.00144,88021.0,88005.0,0.0113702]
[1766133512751,0.00144,88021.0,87999.0,0.00572]
[1766133513058,0.00144,88021.0,88001.0,0.0113708]
[1766133513256,0.00144,88021.0,87999.0,0.00572]
[1766133513651,0.00144,88021.0,88000.0,0.0113709]
[1766133514247,0.00144,88021.0,87999.0,0.00572]
[1766133514751,0.00144,88021.0,88005.0,0.0113702]
[1766133515755,0.00144,88021.0,88008.0,0.0113698]
[1766133515955,0.001,88020.0,88000.0,0.29033399]
[1766133516162,0.001,88026.0,88000.0,0.29033399]
[1766133516748,0.001,88026.0,88007.0,0.0113699]
[1766133516952,0.0002556,88025.0,88008.0,0.00017041]
[1766133520154,0.0002556,88025.0,88009.0,0.0113698]
[1766133520358,0.0002556,88025.0,88008.0,0.00017041]
[1766133521766,0.0002556,88025.0,88009.0,0.0113697]
[1766133522270,0.0002556,88025.0,88008.0,0.00017041]
[1766133526973,0.0002556,88025.0,88018.0,0.00227228]
[1766133527768,0.0002556,88025.0,88008.0,0.00017041]
[1766133531367,0.0113683,88021.0,88008.0,0.00017041]
[1766133531665,0.0113681,88022.0,88008.0,0.00017041]
[1766133531874,0.0113688,88017.0,88008.0,0.00017041]
[1766133532072,0.0002556,88025.0,88008.0,1e-08]
[1766133532073,0.0113692,88014.0,88008.0,1e-08]
[1766133532568,0.0113688,88018.0,88008.0,1e-08]
[1766133533068,0.011368,88023.0,88008.0,1e-08]
[1766133533860,0.0002556,88025.0,88008.0,1e-08]
[1766133534064,0.00296,88024.0,88008.0,1e-08]
[1766133535080,0.011368,88023.0,88008.0,1e-08]
[1766133535286,0.00296,88024.0,88008.0,1e-08]
[1766133535966,0.0032,88023.0,88009.0,0.0113697]
[1766133536166,0.0002556,88025.0,88009.0,0.0113697]
[1766133536379,0.00012,88024.0,88008.0,1e-08]
[1766133537170,0.02425248,88023.0,88008.0,1e-08]
[1766133537371,0.00012,88024.0,88008.0,1e-08]
[1766133537576,0.02425266,88023.0,88008.0,1e-08]
[1766133537776,0.00012,88024.0,88008.0,1e-08]
[1766133537973,0.02425247,88023.0,88008.0,0.01136991]
[1766133538182,0.02426397,88022.0,88008.0,0.01136991]
[1766133538482,0.00012,88024.0,88008.0,0.01136991]
[1766133538681,0.02426397,88023.0,88008.0,0.01136991]
[1766133538880,0.02426397,88022.0,88008.0,0.01136991]
[1766133539083,0.02427913,88021.0,88008.0,0.01136991]
[1766133539280,0.00012,88024.0,88008.0,0.01136991]
[1766133539485,0.02427884,88023.0,88008.0,0.01136991]
[1766133539678,0.02427884,88022.0,88008.0,0.01136991]
[1766133539979,0.02427884,88021.0,88008.0,0.01136991]
[1766133540178,0.02427884,88020.0,88008.0,0.01136991]
[1766133540368,0.02427884,88019.0,88008.0,0.01136991]
[1766133540567,0.00012,88024.0,88008.0,0.01136991]
[1766133540568,0.02427884,88018.0,88008.0,0.01136991]
[1766133540774,0.02427884,88017.0,88008.0,0.01136991]
[1766133540975,0.0002556,88025.0,88011.0,0.0113695]
[1766133541176,0.0002556,88025.0,88008.0,1e-08]
[1766133541177,0.02606713,88024.0,88014.0,0.0113691]
[1766133541473,0.00572,88038.0,88014.0,0.29070165]
[1766133541669,0.00572,88038.0,88023.0,0.0113679]
[1766133542378,0.011365,88047.0,88023.0,0.0113679]
[1766133542379,0.00017041,88039.0,88023.0,0.0113679]
[1766133542585,0.00572,88038.0,88023.0,0.0113679]
[1766133543887,0.14939214,88053.0,88022.0,0.00017041]
[1766133544085,0.00572,88052.0,88028.0,0.29067658]
[1766133544277,0.00572,88052.0,88022.0,0.00017041]
[1766133544775,0.00017041,88046.0,88022.0,0.00017041]
[1766133545184,0.00017041,88046.0,88032.0,0.0113668]
[1766133546489,0.00017041,88046.0,88027.0,0.0113674]
[1766133549689,0.00017041,88046.0,88022.0,0.00017041]
[1766133549889,4.1e-07,88046.0,88032.0,0.0113668]
[1766133554793,4.1e-07,88046.0,88024.0,0.0113678]
[1766133555691,4.1e-07,88046.0,88027.0,0.0113674]
[1766133556194,4.1e-07,88046.0,88030.0,0.011367]
[1766133557987,4.1e-07,88046.0,88023.0,0.011368]
[1766133558197,0.01363474,88058.0,88023.0,0.011368]
[1766133558391,0.0113638,88056.0,88022.0,0.00017041]
[1766133558590,0.0113638,88056.0,88032.0,0.0113667]
[1766133558892,0.0113638,88056.0,88034.0,0.0113664]
[1766133559197,0.00017041,88054.0,88034.0,0.0113664]
[1766133559403,0.00572,88053.0,88034.0,0.0113664]
[1766133560099,0.0113643,88052.0,88032.0,0.0113667]
[1766133560294,0.0113643,88052.0,88028.0,0.0113672]
[1766133560598,0.00572,88053.0,88022.0,0.00017041]
[1766133561391,0.0113653,88044.0,88022.0,0.01153851]
[1766133561596,0.00572,88044.0,88022.0,0.00017041]
[1766133561788,0.0113657,88041.0,88022.0,0.00017041]
[1766133562099,0.0113667,88033.0,88022.0,4.1e-07]
[1766133562300,0.42625428,88040.0,88022.0,4.1e-07]
[1766133562301,0.00572,88032.0,88022.0,4.1e-07]
[1766133562903,0.0113642,88053.0,88022.0,4.1e-07]
[1766133562904,0.00572,88031.0,88022.0,0.01136851]
[1766133563091,1e-08,88035.0,88028.0,0.0113673]
[1766133563295,1e-08,88035.0,88024.0,0.0113678]
[1766133563600,1e-08,88035.0,88022.0,4.1e-07]
[1766133563791,1e-08,88035.0,88023.0,0.011368]
[1766133567004,1e-08,88035.0,88022.0,4.1e-07]
[1766133567606,1e-08,88035.0,88032.0,0.0113668]
[1766133568795,0.0113638,88056.0,88022.0,4.1e-07]
[1766133568995,0.00364,88055.0,88022.0,4.1e-07]
[1766133569191,0.0113638,88056.0,88034.0,0.0113664]
[1766133569395,0.00572,88055.0,88034.0,0.0113664]
[1766133569806,0.00017041,88053.0,88034.0,0.0113664]
[1766133573499,0.00017041,88053.0,88035.0,0.0113663]
[1766133574705,0.00572,88052.0,88038.0,0.0113659]
[1766133575609,0.00572,88052.0,88034.0,0.0113665]
[1766133576495,0.00572,88052.0,88037.0,0.0113661]
[1766133577106,0.00572,88052.0,88033.0,0.0113666]
[1766133578203,0.00572,88052.0,88030.0,0.29066938]
[1766133578204,0.00572,88052.0,88036.0,0.0113663]
[1766133578706,0.00572,88052.0,88039.0,0.0113658]
[1766133578909,0.00017041,88053.0,88039.0,0.0113658]
[1766133579111,0.00589041,88053.0,88039.0,0.0113658]
[1766133580407,0.00589041,88053.0,88042.0,0.0113655]
[1766133581315,0.00589041,88053.0,88038.0,0.0113659]
[1766133581610,0.00589041,88053.0,88029.0,0.00364]
[1766133581806,0.29066938,88050.0,88029.0,0.00364]
[1766133582006,0.0113649,88047.0,88029.0,0.00364]
[1766133582206,0.29066938,88050.0,88029.0,0.00364]
[1766133582406,0.0113651,88046.0,88029.0,0.00364]
[1766133583512,0.29066938,88040.0,88022.0,4.1e-07]
[1766133583807,0.30775528,88040.0,88022.0,4.1e-07]
[1766133585911,0.29638938,88040.0,88027.0,0.0113673]
[1766133586110,0.00572,88040.0,88027.0,0.0113673]
[1766133586705,0.29066938,88050.0,88030.0,0.011367]
[1766133586898,0.0113643,88052.0,88030.0,0.011367]
[1766133587112,0.0170846,88049.0,88030.0,0.011367]
[1766133587313,0.0170846,88049.0,88026.0,0.0113675]
[1766133587616,0.0113651,88046.0,88026.0,0.0113675]
[1766133587997,0.0170846,88049.0,88026.0,0.0113675]
[1766133589615,0.00572,88049.0,88022.0,4.1e-07]
[1766133590219,0.0113649,88048.0,88023.0,0.0113679]
[1766133592314,0.0170846,88049.0,88026.0,0.0113675]
[1766133592516,0.0113651,88046.0,88022.0,4.1e-07]
[1766133592820,0.00572,88049.0,88022.0,4.1e-07]
[1766133593010,0.0113662,88038.0,88022.0,4.1e-07]
[1766133593211,0.00572,88037.0,88022.0,4.1e-07]
[1766133594316,0.0113664,88036.0,88022.0,4.1e-07]
[1766133594521,0.0113671,88031.0,88022.0,4.1e-07]
[1766133594718,0.0113672,88029.0,88022.0,4.1e-07]
[1766133595317,0.00572,88030.0,88022.0,4.1e-07]
[1766133596525,0.00572,88030.0,87990.0,0.29066938]
[1766133596526,0.0113678,88025.0,88000.0,0.04087913]
[1766133596713,0.00572,88024.0,88001.0,0.00012]
[1766133597116,0.00572,88024.0,88004.0,0.0113704]
[1766133597324,0.00572,88024.0,88005.0,0.00017041]
[1766133597524,0.011368,88023.0,88005.0,0.00017041]
[1766133597724,0.00572,88024.0,88005.0,0.00017041]
[1766133598438,0.00572,88024.0,88006.0,0.0113701]
[1766133599429,0.00572,88024.0,88009.0,0.0113697]
[1766133599631,0.00572,88024.0,88012.0,0.0113694]
[1766133601131,0.00572,88023.0,88005.0,0.00017041]
[1766133601429,0.00244,88022.0,88012.0,0.0113693]
[1766133601635,0.00244,88021.0,88012.0,0.0113693]
[1766133601835,1e-08,88035.0,88029.0,0.0113671]
[1766133602033,0.08931813,88053.0,88032.0,0.0113668]
[1766133602229,0.00572,88052.0,88031.0,0.0113669]
[1766133602430,0.00572,88052.0,88021.0,0.00564]
[1766133602431,0.08931813,88053.0,88034.0,0.0113665]
[1766133602631,0.00572,88052.0,88034.0,0.0113665]
[1766133602832,0.00572,88052.0,88030.0,0.011367]
[1766133603031,0.00572,88052.0,88032.0,0.00017041]
[1766133603032,0.00017041,88050.0,88032.0,0.00017041]
[1766133604025,0.0028,88049.0,88032.0,0.00017041]
[1766133604224,0.00336,88048.0,88032.0,0.00017041]
[1766133605943,0.00336,88048.0,88032.0,4.1e-07]
[1766133606441,0.0113649,88047.0,88032.0,4.1e-07]
[1766133606644,0.0113651,88046.0,88032.0,4.1e-07]
[1766133607142,0.00572,88045.0,88032.0,4.1e-07]
[1766133607739,0.00017041,88050.0,88033.0,0.0113666]
[1766133607938,0.00572,88049.0,88033.0,0.0113666]
[1766133608136,0.00017041,88050.0,88033.0,0.0113666]
[1766133608137,0.0042,88048.0,88033.0,0.0113666]
[1766133608531,0.0042,88048.0,88037.0,0.0113661]
[1766133608938,0.0042,88048.0,88032.0,4.1e-07]
[1766133609243,0.00228,88047.0,88036.0,0.0113663]
[1766133609439,0.00228,88047.0,88032.0,0.01136711]
[1766133609648,0.00136,88046.0,88032.0,0.01136711]
[1766133609839,0.00136,88046.0,88032.0,4.1e-07]
[1766133610239,0.00017041,88050.0,88032.0,4.1e-07]
[1766133610439,0.00068,88049.0,88032.0,4.1e-07]
[1766133611036,0.00017041,88050.0,88032.0,4.1e-07]
[1766133611235,0.00572,88049.0,88039.0,0.0113659]
[1766133611447,0.00017041,88050.0,88039.0,0.0113659]
[1766133612343,0.00572,88049.0,88039.0,0.0113659]
[1766133612949,0.00572,88049.0,88038.0,0.0113659]
[1766133613446,0.00589041,88050.0,88032.0,4.1e-07]
[1766133614236,0.00589041,88050.0,88036.0,0.0113663]
[1766133615147,0.00017041,88050.0,88036.0,0.0113663]
[1766133615450,0.00589041,88050.0,88036.0,0.0113663]
[1766133615752,0.00572041,88050.0,88032.0,4.1e-07]
[1766133617045,0.00227124,88058.0,88032.0,4.1e-07]
[1766133617242,0.09308794,88064.0,88054.0,0.0113639]
[1766133617442,0.09308794,88064.0,88044.0,0.00572]
[1766133617848,0.29066938,88080.0,88059.0,0.0113633]
[1766133618044,0.00572,88079.0,88061.0,0.00017041]
[1766133618246,0.00017041,88078.0,88062.0,0.0113629]
[1766133618442,0.00017041,88078.0,88065.0,0.0113625]
[1766133618637,0.00017041,88078.0,88061.0,0.00017041]
[1766133618842,4.1e-07,88078.0,88061.0,0.01153341]
[1766133619043,4.1e-07,88078.0,88064.0,0.0113627]
[1766133619349,4.1e-07,88078.0,88061.0,0.00017041]
[1766133619553,4.1e-07,88078.0,88062.0,0.011363]
[1766133619848,4.1e-07,88078.0,88061.0,0.00017041]
[1766133620044,4.1e-07,88078.0,88061.0,0.01153341]
[1766133620246,4.1e-07,88078.0,88064.0,0.0113626]
[1766133624353,4.1e-07,88078.0,88067.0,0.0113623]
[1766133625152,4.1e-07,88078.0,88071.0,0.0113618]
[1766133626857,4.1e-07,88078.0,88076.0,0.0113611]
[1766133627053,4.1e-07,88078.0,88072.0,0.0113616]
[1766133627255,4.1e-07,88078.0,88068.0,0.3017871]
[1766133627656,4.1e-07,88078.0,88063.0,0.0170827]
[1766133628263,4.1e-07,88078.0,88066.0,0.0113623]
[1766133629558,4.1e-07,88078.0,88063.0,0.00572]
[1766133630150,4.1e-07,88078.0,88064.0,0.0113627]
[1766133631057,4.1e-07,88078.0,88061.0,0.00017041]
[1766133631257,0.290425,88071.0,88061.0,0.00017041]
[1766133631456,0.290425,88071.0,88048.0,0.0113648]
[1766133631457,0.0113619,88070.0,88044.0,0.0113653]
[1766133631762,0.290425,88061.0,88045.0,0.00572]
[1766133633057,0.0113624,88067.0,88045.0,0.00572]
[1766133633355,0.00572,88070.0,88045.0,0.00572]
[1766133633658,0.00572,88070.0,88046.0,0.011365]
[1766133633860,0.296145,88070.0,88046.0,0.011365]
[1766133634060,0.296145,88070.0,88049.0,0.0113646]
[1766133634955,0.00572,88069.0,88049.0,0.0113646]
[1766133635857,0.00572,88069.0,88050.0,0.290425]
[1766133636053,0.00572,88068.0,88050.0,0.290425]
[1766133636362,0.00572,88068.0,88049.0,0.0113646]
[1766133636857,0.00572,88068.0,88045.0,0.00572]
[1766133637460,0.0113624,88067.0,88045.0,0.00572]
[1766133637761,0.290425,88055.0,88044.0,3e-07]
[1766133637960,0.08878186,88071.0,88036.0,0.00572]
[1766133637961,0.290425,88050.0,88036.0,0.00572]
[1766133638565,0.00572,88054.0,88036.0,0.00572]
[1766133638960,0.0058903,88054.0,88036.0,0.0058903]
[1766133639258,0.290425,88050.0,88036.0,0.0058903]
[1766133639461,0.290425,88046.0,88036.0,0.0058903]
[1766133639660,0.00572,88046.0,88036.0,0.0001703]
[1766133643675,0.00572,88051.0,88036.0,0.0001703]
[1766133644265,0.00572,88051.0,88037.0,0.0113661]
[1766133644856,0.00572,88051.0,88036.0,0.0001703]
[1766133645259,0.00572,88051.0,88040.0,0.0113658]
[1766133647561,0.0001703,88054.0,88040.0,0.0113658]
[1766133647562,0.00572,88050.0,88040.0,0.0113658]
[1766133649363,0.00572,88050.0,88036.0,0.0115365]
[1766133649967,0.296145,88050.0,88036.0,0.0001703]
[1766133650162,0.296145,88050.0,88033.0,9.435e-05]
[1766133650470,0.3075095,88050.0,88033.0,9.435e-05]
[1766133651169,0.3075095,88050.0,88033.0,0.00026465]
[1766133652776,0.0113661,88038.0,88008.0,0.040795]
[1766133653072,0.00572,88037.0,88017.0,0.0113686]
[1766133653274,0.00572,88036.0,88019.0,0.0113684]
[1766133653663,0.00572,88036.0,88022.0,0.0113681]
[1766133653864,9.331e-05,88035.0,88022.0,0.0113681]
[1766133654562,9.331e-05,88035.0,88020.0,0.0001704]